bitfinex/quotes_SOLUSD_20250805
["timestamp","ask_amount","ask_price","bid_price","bid_amount"]
[1754412029641,26.0,163.18,163.11,0.71]
[1754412029844,15.24837714,163.18,163.13,0.71]
[1754412030030,12.53314055,163.18,163.14,0.71]
[1754412030251,12.53314055,163.2,163.15,0.71]
[1754412030537,6.64508517,163.21,163.17,12.53314055]
[1754412030739,6.64508517,163.21,163.11,44.34]
[1754412030935,19.05633891,163.19,163.11,44.34]
[1754412031139,19.05633891,163.17,163.12,44.52]
[1754412031328,7.09582742,163.2,163.08,6.13194986]
[1754412031524,19.05633891,163.15,163.1,19.05633891]
[1754412031719,0.72,163.18,163.1,6.13110362]
[1754412031922,26.0,163.16,163.08,50.85192861]
[1754412032139,26.0,163.19,163.08,50.85192861]
[1754412032340,19.05633891,163.17,163.08,66.18182804]
[1754412032650,7.19139793,163.22,163.16,19.05633891]
[1754412032860,7.19139793,163.22,163.18,19.05633891]
[1754412033054,7.19139793,163.22,163.19,0.71]
[1754412033234,26.24773684,163.22,163.19,0.71]
[1754412033433,7.19139793,163.22,163.2,0.71]
[1754412033950,19.72633891,163.21,163.14,45.49]
[1754412034160,26.0,163.19,163.1,6.13120784]
[1754412034335,26.0,163.17,163.11,0.69]
[1754412034527,7.19539709,163.2,163.11,0.69]
[1754412034729,7.19539709,163.2,163.11,0.83216157]
[1754412034981,7.19539709,163.2,163.12,26.0]
[1754412035137,7.19539709,163.2,163.13,0.69]
[1754412035337,0.67,163.19,163.12,19.05633891]
[1754412035529,7.19539709,163.2,163.11,44.88]
[1754412035736,7.19539709,163.2,163.13,0.69]
[1754412035935,26.251736,163.2,163.15,19.05633891]
[1754412036162,7.19539709,163.2,163.16,19.74633891]
[1754412036370,7.19539709,163.2,163.17,0.69]
[1754412036671,7.19539709,163.2,163.18,0.69]
[1754412036893,7.19539709,163.2,163.17,0.69]
[1754412037674,7.19539709,163.2,163.17,19.74633891]
[1754412037968,7.19539709,163.2,163.18,0.69]
[1754412038168,7.19539709,163.2,163.19,0.69]
[1754412038367,7.19539709,163.2,163.18,0.69]
[1754412038536,7.19539709,163.2,163.18,19.05633891]
[1754412038874,7.19539709,163.2,163.14,51.0896273]
[1754412039035,7.19539709,163.2,163.16,0.69]
[1754412039230,7.19539709,163.2,163.17,0.69]
[1754412039568,19.05633891,163.18,163.13,19.74633891]
[1754412039769,7.19539709,163.2,163.14,19.74633891]
[1754412039950,7.19539709,163.2,163.16,19.05633891]
[1754412040154,7.19539709,163.2,163.19,19.05633891]
[1754412040470,7.19539709,163.2,163.19,64.82633891]
[1754412041437,7.19539709,163.2,163.19,45.77]
[1754412041656,7.19539709,163.2,163.19,45.08]
[1754412041847,7.19539709,163.2,163.19,64.13633891]
[1754412042153,7.19539709,163.2,163.19,45.08]
[1754412042344,7.19539709,163.2,163.14,0.69]
[1754412042345,26.251736,163.2,163.14,0.69]
[1754412042543,26.251736,163.2,163.14,45.79]
[1754412042743,26.251736,163.2,163.15,19.05633891]
[1754412042970,26.251736,163.2,163.15,19.74633891]
[1754412043274,7.19539709,163.2,163.17,19.05633891]
[1754412043466,7.19539709,163.2,163.18,19.74633891]
[1754412043777,7.19539709,163.2,163.18,0.69]
[1754412043977,7.19539709,163.2,163.19,0.69]
[1754412044277,7.19539709,163.2,163.17,19.05633891]
[1754412044845,7.19539709,163.2,163.18,0.69]
[1754412045041,7.19539709,163.2,163.15,6.12927339]
[1754412045042,19.05633891,163.19,163.15,0.69]
[1754412045248,7.86539709,163.2,163.14,64.15633891]
[1754412045457,26.251736,163.2,163.15,19.05633891]
[1754412045668,7.19539709,163.2,163.16,0.69]
[1754412045869,32.37926101,163.2,163.16,0.69]
[1754412046070,7.19539709,163.2,163.17,19.74633891]
[1754412046293,7.19539709,163.2,163.18,0.69]
[1754412046495,7.19539709,163.2,163.16,19.74633891]
[1754412046959,13.32288541,163.2,163.16,19.74633891]
[1754412047274,13.32288541,163.2,163.16,19.05633891]
[1754412047484,32.37922432,163.2,163.15,19.05633891]
[1754412047693,19.05633891,163.16,163.14,45.14]
[1754412048048,19.05633891,163.15,163.13,0.06]
[1754412048363,6.79910601,163.16,163.13,0.06]
[1754412048553,19.05633891,163.14,163.13,0.06]
[1754412048973,19.05633891,163.15,163.13,0.06]
[1754412049281,19.05633891,163.14,163.13,0.06]
[1754412049880,25.85604345,163.14,163.13,0.06]
[1754412050790,25.85604345,163.14,162.98,15.3387997]
[1754412050791,65.42127291,163.14,162.98,15.3387997]
[1754412050953,12.64878426,163.07,163.02,13.33878426]
[1754412051268,12.64878426,163.04,162.99,0.69]
[1754412051467,26.0,163.08,162.97,6.23606408]
[1754412051468,12.64878426,163.02,162.97,12.74878426]
[1754412051679,13.31878426,163.01,162.97,0.1]
[1754412051880,19.45337722,163.01,162.97,0.1]
[1754412052381,44.78337722,163.01,163.0,998.87]
[1754412052887,25.24784681,163.01,163.0,998.87]
[1754412054147,51.24784681,163.01,163.0,998.87]
[1754412054390,112.02054709,163.01,163.0,932.85010198]
[1754412054556,112.02054709,163.01,163.0,895.65024935]
[1754412054753,112.02054709,163.01,163.0,826.30945027]
[1754412055085,86.02054709,163.01,163.0,744.1134164]
[1754412055269,86.02054709,163.01,163.0,603.55374325]
[1754412055576,86.02054709,163.01,163.0,531.99864491]
[1754412055577,86.06054709,163.01,163.0,531.99864491]
[1754412055751,86.06054709,163.01,163.0,445.70199682]
[1754412055952,43.97525948,163.01,163.0,414.80795643]
[1754412056177,89.27525948,163.01,163.0,414.80795643]
[1754412056684,89.27525948,163.01,163.0,383.76516256]
[1754412057194,9.32930535,163.01,163.0,383.76516256]
[1754412057358,54.4425592,163.01,163.0,383.76516256]
[1754412057557,35.32930535,163.01,163.0,383.76516256]
[1754412057870,54.4425592,163.01,163.0,383.76516256]
[1754412058452,25.24784681,163.01,163.0,383.76516256]
[1754412059316,6.13459296,163.01,163.0,383.76516256]
[1754412059472,25.24784681,163.01,163.0,383.76516256]
[1754412059912,51.24784681,163.01,163.0,383.76516256]
[1754412060262,25.24784681,163.01,163.0,383.76516256]
[1754412060497,5.00417603,163.03,163.0,383.76516256]
[1754412060498,19.11325385,163.06,163.0,403.56841641]
[1754412060694,18.29976655,163.1,163.01,46.03]
[1754412060998,19.11325385,163.02,163.0,383.76516256]
[1754412061292,19.11325385,163.01,163.0,383.76516256]
[1754412061766,25.24784681,163.01,163.0,383.76516256]
[1754412062088,29.70282257,163.01,163.0,383.76516256]
[1754412062268,40.78054709,163.01,163.0,353.03350894]
[1754412062467,40.78054709,163.01,163.0,321.43289982]
[1754412062668,40.78054709,163.01,163.0,280.920586]
[1754412062897,71.23197361,163.01,163.0,280.920586]
[1754412063090,71.23684383,163.01,163.0,280.920586]
[1754412063287,51.24784681,163.01,163.0,280.920586]
[1754412063487,25.24784681,163.01,163.0,281.570586]
[1754412063868,29.70048256,163.01,163.0,281.570586]
[1754412064068,29.70048256,163.01,163.0,280.920586]
[1754412064683,10.58722871,163.01,163.0,280.920586]
[1754412064898,4.45263575,163.01,163.0,281.570586]
[1754412065099,4.46032308,163.01,163.0,281.570586]
[1754412065309,25.24755742,163.02,163.0,281.570586]
[1754412065489,23.57196895,163.01,163.0,280.920586]
[1754412065692,69.09196895,163.01,163.0,280.920586]
[1754412065895,6.13459296,163.01,163.0,280.920586]
[1754412066089,6.13459296,163.01,163.0,281.570586]
[1754412066090,29.71111532,163.01,163.0,281.570586]
[1754412066290,6.13459296,163.01,163.0,280.920586]
[1754412066603,25.24784681,163.01,163.0,250.04537797]
[1754412067095,29.70926647,163.01,163.0,250.04537797]
[1754412067270,45.24196675,163.01,163.0,217.15228757]
[1754412067672,45.24196675,163.01,163.0,150.37561194]
[1754412067989,45.24196675,163.01,163.0,84.42155699]
[1754412068201,45.24196675,163.01,163.0,51.58811604]
[1754412068572,71.6487129,163.01,163.0,51.58811604]
[1754412068892,90.76196675,163.01,163.0,51.58811604]
[1754412069089,10.59601262,163.01,163.0,51.58811604]
[1754412069403,75.22926647,163.01,163.0,51.58811604]
[1754412069916,90.76196675,163.01,163.0,1e-08]
[1754412070210,41.53270028,162.98,162.97,1e-08]
[1754412070370,110.60737379,162.98,162.97,1e-08]
[1754412070973,65.10737379,162.98,162.97,1e-08]
[1754412071207,110.46521222,162.98,162.97,1e-08]
[1754412071587,49.57467351,162.98,162.97,1e-08]
[1754412072011,101.21039568,162.98,162.97,1e-08]
[1754412072385,4.46141966,162.98,162.97,0.65000001]
[1754412072585,18.437144,162.99,162.97,19.76325386]
[1754412072802,17.717144,162.99,162.98,13.31044023]
[1754412072999,6.13421666,163.02,162.98,13.31044023]
[1754412073194,17.13322278,163.01,162.98,0.65]
[1754412073395,4.47278255,163.0,162.99,0.65]
[1754412073602,17.13322278,163.0,162.97,1e-08]
[1754412073822,17.13322278,162.99,162.97,0.65000001]
[1754412074119,4.47278255,162.98,162.97,1e-08]
[1754412074291,6.13539191,162.99,162.97,1e-08]
[1754412074613,64.29532156,163.01,162.97,0.65000001]
[1754412074918,4.4763072,163.0,162.97,0.65000001]
[1754412075087,0.03,163.03,162.99,12.66044023]
[1754412075288,0.03,163.03,163.02,12.66044023]
[1754412075510,12.69044023,163.03,163.02,0.65]
[1754412075710,0.03,163.03,163.02,13.31044023]
[1754412076304,18.79213037,163.09,163.02,19.44465689]
[1754412076618,11.10486243,163.1,163.05,12.66044023]
[1754412076808,6.13132891,163.1,163.06,0.65]
[1754412077007,18.79176914,163.1,163.07,0.65]
[1754412077213,69.1114939,163.11,163.08,0.65]
[1754412077412,24.55262412,163.13,163.09,0.65]
[1754412077724,18.422427,163.13,163.11,12.66044023]
[1754412078103,18.422427,163.13,163.12,0.65]
[1754412078303,12.66044023,163.15,163.12,0.65]
[1754412078495,12.66044023,163.15,163.1,12.66044023]
[1754412078696,12.66044023,163.11,163.1,0.65]
[1754412079029,45.6,163.14,163.1,0.65]
[1754412079229,12.66044023,163.12,163.1,0.65]
[1754412079527,12.66044023,163.12,163.11,0.65]
[1754412079826,12.66044023,163.12,163.09,0.65]
[1754412080047,12.66044023,163.12,163.1,0.65]
[1754412080332,12.66044023,163.11,163.06,0.65]
[1754412080539,12.66044023,163.07,163.04,0.65]
[1754412080744,12.66044023,163.06,163.05,0.65]
[1754412081108,12.66044023,163.07,163.05,0.65]
[1754412081531,12.66044023,163.08,163.03,64.3942185]
[1754412081733,12.66044023,163.11,163.06,13.31044023]
[1754412081956,31.39359511,163.16,163.09,12.66044023]
[1754412081957,12.66044023,163.14,163.09,12.66044023]
[1754412082103,26.46164441,163.18,163.1,13.31044023]
[1754412082104,23.28638853,163.18,163.1,13.31044023]
[1754412082306,12.66044023,163.18,163.13,12.66044023]
[1754412082548,12.66044023,163.18,163.14,0.65]
[1754412082755,19.54295302,163.19,163.14,12.66044023]
[1754412082906,19.54295302,163.19,163.15,0.65]
[1754412083106,19.54295302,163.19,163.14,12.66044023]
[1754412083107,19.54295302,163.19,163.16,0.65]
[1754412083304,6.88251279,163.19,163.16,0.65]
[1754412083639,12.66044023,163.17,163.14,0.65]
[1754412083800,12.66044023,163.16,163.11,12.66044023]
[1754412084004,12.66044023,163.16,163.12,0.65]
[1754412084234,13.01040372,163.19,163.13,0.65]
[1754412084439,28.32996986,163.19,163.11,0.65]
[1754412085637,28.32996986,163.19,163.06,150.09126693]
[1754412085638,12.66044023,163.12,163.08,0.65]
[1754412085940,45.64,163.16,163.08,0.65]
[1754412086152,12.66044023,163.1,163.08,0.65]
[1754412086653,12.66044023,163.12,163.09,0.65]
[1754412086830,12.66044023,163.12,163.1,0.65]
[1754412087032,12.66044023,163.11,163.1,0.65]
[1754412087650,12.66044023,163.11,163.07,0.65]
[1754412087821,12.66044023,163.08,163.05,0.65]
[1754412088028,12.66044023,163.08,163.04,45.62]
[1754412088223,12.66044023,163.09,163.06,0.65]
[1754412088641,12.66044023,163.11,163.07,0.65]
[1754412089018,12.66044023,163.11,163.08,0.65]
[1754412089213,12.66044023,163.1,163.08,0.65]
[1754412089531,12.66044023,163.09,163.05,0.65]
[1754412089857,12.66044023,163.1,163.06,0.65]
[1754412090057,12.66044023,163.1,163.07,0.65]
[1754412090457,12.66044023,163.1,163.06,6.13271188]
[1754412090766,12.66044023,163.15,163.09,12.66044023]
[1754412091057,12.66044023,163.15,163.1,13.31044023]
[1754412091359,12.66044023,163.15,163.11,0.65]
[1754412091533,6.12870245,163.17,163.12,0.65]
[1754412091853,6.1282623,163.18,163.13,0.65]
[1754412092059,6.88251279,163.19,163.15,12.66044023]
[1754412092257,6.88251279,163.19,163.14,0.65]
[1754412092258,19.54295302,163.19,163.16,0.65]
[1754412092420,12.66044023,163.18,163.14,0.65]
[1754412092621,25.67093782,163.19,163.15,0.65]
[1754412092925,6.88251279,163.19,163.14,12.66044023]
[1754412093129,6.88251279,163.19,163.16,0.65]
[1754412093443,12.66044023,163.17,163.12,19.44089633]
[1754412093647,12.66044023,163.17,163.13,0.72]
[1754412093856,6.88251279,163.19,163.14,0.72]
[1754412094020,6.88251279,163.19,163.17,12.66044023]
[1754412094224,6.88251279,163.19,163.17,18.78881765]
[1754412094433,6.88251279,163.19,163.18,0.72]
[1754412094745,0.03,163.22,163.18,13.38044023]
[1754412094954,0.03,163.22,163.19,0.72]
[1754412095339,6.15673526,163.22,163.19,0.72]
[1754412095537,0.03,163.22,163.19,13.38044023]
[1754412095968,0.03,163.22,163.2,0.72]
[1754412096124,0.03,163.22,163.19,12.66044023]
[1754412096323,0.03,163.22,163.19,18.78815521]
[1754412096526,0.03,163.22,163.19,19.50815521]
[1754412096823,0.03,163.22,163.19,13.38044023]
[1754412097444,0.03,163.22,163.19,6.84780044]
[1754412097760,0.03,163.22,163.2,0.72]
[1754412098122,0.03,163.22,163.19,12.66044023]
[1754412098334,0.03,163.22,163.19,13.38044023]
[1754412099137,0.03,163.22,163.2,0.72]
[1754412099347,0.03,163.22,163.18,12.66044023]
[1754412099737,0.03,163.22,163.19,13.38044023]
[1754412099937,0.03,163.22,163.2,0.72]
[1754412100346,0.03,163.22,163.19,12.66044023]
[1754412100531,12.69044023,163.22,163.18,12.66044023]
[1754412100747,0.03,163.22,163.18,13.38044023]
[1754412100941,0.03,163.22,163.19,0.72]
[1754412101253,0.03,163.22,163.15,45.42]
[1754412101457,12.66044023,163.2,163.15,58.80044023]
[1754412101754,12.66044023,163.2,163.16,0.72]
[1754412101942,0.73,163.22,163.16,0.72]
[1754412102252,12.66044023,163.19,163.16,0.72]
[1754412102476,12.66044023,163.2,163.15,64.20947226]
[1754412102634,12.66044023,163.2,163.17,0.72]
[1754412102835,12.66044023,163.21,163.18,0.72]
[1754412103132,0.03,163.22,163.18,13.38044023]
[1754412103327,12.69044023,163.22,163.18,12.66044023]
[1754412103551,0.03,163.22,163.19,13.38044023]
[1754412103853,0.03,163.22,163.2,0.72]
[1754412104564,0.03,163.22,163.21,13.38044023]
[1754412104728,12.66044023,163.25,163.21,0.72]
[1754412104930,12.66044023,163.23,163.21,0.72]
[1754412105162,12.66044023,163.24,163.19,13.38044023]
[1754412105402,12.66044023,163.24,163.2,0.72]
[1754412105651,12.66044023,163.21,163.16,64.9293934]
[1754412105854,12.66044023,163.21,163.17,12.66044023]
[1754412106053,0.7,163.23,163.17,12.66044023]
[1754412106054,12.66044023,163.22,163.17,13.38044023]
[1754412106228,12.66044023,163.22,163.18,0.72]
[1754412106434,0.7,163.28,163.2,18.78789121]
[1754412106635,12.66044023,163.25,163.2,19.50789121]
[1754412107227,6.17790809,163.31,163.22,12.66044023]
[1754412107430,12.66044023,163.28,163.23,13.38044023]
[1754412107630,0.7,163.31,163.22,89.1]
[1754412107631,12.66044023,163.29,163.24,13.38044023]
[1754412107830,12.66044023,163.28,163.24,0.72]
[1754412108451,12.66044023,163.28,163.24,6.12584475]
[1754412108656,12.66044023,163.29,163.25,0.72]
[1754412108853,12.66044023,163.26,163.19,12.66044023]
[1754412109046,12.66044023,163.24,163.2,45.38]
[1754412109274,12.66044023,163.26,163.21,13.38044023]
[1754412109592,12.69044023,163.26,163.22,0.72]
[1754412109789,0.03,163.26,163.22,0.72]
[1754412110084,12.66044023,163.25,163.22,0.72]
[1754412110476,0.03,163.26,163.22,0.72]
[1754412110797,0.7,163.25,163.2,45.38]
[1754412110963,0.7,163.24,163.2,45.38]
[1754412111289,12.66044023,163.22,163.2,45.38]
[1754412112773,12.66044023,163.21,163.2,45.38]
[1754412112976,6.12557427,163.25,163.2,46.1]
[1754412113192,12.66044023,163.24,163.21,0.72]
[1754412113693,12.66044023,163.22,163.17,45.34]
[1754412113871,12.66044023,163.2,163.17,46.06]
[1754412114686,12.66044023,163.2,163.17,45.34]
[1754412114863,12.66044023,163.18,163.14,0.72]
[1754412115063,12.66044023,163.17,163.14,0.72]
[1754412115260,12.66044023,163.16,163.14,0.72]
[1754412115464,12.66044023,163.16,163.07,26.0]
[1754412115465,12.66044023,163.15,163.1,0.72]
[1754412115692,12.66044023,163.16,163.11,13.38044023]
[1754412115989,12.66044023,163.16,163.12,0.72]
[1754412116286,12.66044023,163.16,163.13,0.72]
[1754412116492,12.66044023,163.15,163.11,12.66044023]
[1754412116695,12.66044023,163.15,163.12,0.72]
[1754412117683,6.82810532,163.19,163.12,0.72]
[1754412117883,12.66044023,163.15,163.12,0.72]
[1754412118484,6.82810532,163.19,163.1,58.00044023]
[1754412118485,12.66044023,163.14,163.1,45.34]
[1754412118692,12.66044023,163.14,163.11,0.72]
[1754412119201,12.66044023,163.13,163.1,45.34]
[1754412119407,12.66044023,163.13,163.1,46.06]
[1754412119792,6.12951018,163.15,163.1,46.06]
[1754412119994,12.66044023,163.13,163.1,46.06]
[1754412120187,12.66044023,163.11,163.1,45.34]
[1754412120501,12.66044023,163.11,163.07,0.72]
[1754412120708,12.66044023,163.11,163.07,46.04]
[1754412120873,12.66044023,163.11,163.08,0.72]
[1754412121194,12.66044023,163.12,163.09,0.72]
[1754412121387,6.12908213,163.16,163.1,0.72]
[1754412121603,26.0,163.17,163.12,12.66044023]
[1754412121604,12.66044023,163.17,163.12,12.66044023]
[1754412121810,12.66044023,163.18,163.14,18.79014477]
[1754412121977,12.66044023,163.18,163.15,0.72]
[1754412122505,12.66044023,163.16,163.11,64.0912193]
[1754412122691,12.66044023,163.16,163.12,0.72]
[1754412123074,12.66044023,163.16,163.11,64.0912193]
[1754412123275,12.66044023,163.18,163.13,13.38044023]
[1754412123480,6.12745865,163.2,163.14,0.67]
[1754412123719,12.66044023,163.2,163.15,58.00044023]
[1754412123896,12.66044023,163.19,163.15,45.34]
[1754412124090,12.66044023,163.19,163.15,51.46931531]
[1754412124286,12.66044023,163.19,163.15,64.79975554]
[1754412124704,12.66044023,163.19,163.15,64.79975407]
[1754412124904,12.66044023,163.2,163.16,0.67]
[1754412125406,12.66044023,163.22,163.18,12.66044023]
[1754412125609,0.03,163.23,163.2,12.66044023]
[1754412125907,0.03,163.23,163.2,18.78759962]
[1754412126108,0.03,163.23,163.21,0.67]
[1754412126312,0.03,163.23,163.2,45.32]
[1754412126502,0.03,163.23,163.2,45.99]
[1754412126694,0.03,163.23,163.21,0.67]
[1754412126891,0.03,163.23,163.21,13.33044023]
[1754412127100,0.03,163.23,163.22,0.67]
[1754412127411,0.03,163.23,163.2,45.32]
[1754412127591,0.03,163.23,163.2,57.98044023]
[1754412127937,0.03,163.23,163.22,18.78714038]
[1754412128384,0.03,163.23,163.22,19.45714038]
[1754412131210,0.03,163.23,163.22,45.3]
[1754412131407,0.03,163.23,163.22,45.97]
[1754412131613,0.03,163.23,163.22,0.67]
[1754412131816,0.03,163.23,163.22,45.3]
[1754412132318,0.03,163.23,163.22,64.75714038]
[1754412133098,0.03,163.23,163.22,58.63044023]
[1754412133298,12.69044023,163.23,163.18,89.1]
[1754412133519,12.66044023,163.19,163.16,0.67]
[1754412133695,12.66044023,163.19,163.17,45.26]
[1754412133894,12.66044023,163.18,163.17,45.26]
[1754412134095,6.12729271,163.21,163.17,45.26]
[1754412134321,12.66044023,163.19,163.17,45.26]
[1754412134510,6.15645882,163.23,163.18,0.67]
[1754412134838,0.03,163.23,163.2,12.66044023]
[1754412135125,0.03,163.23,163.21,45.26]
[1754412136028,0.03,163.23,163.21,45.93]
[1754412136197,0.03,163.23,163.21,64.04747408]
[1754412136394,0.03,163.23,163.22,13.33044023]
[1754412137912,0.03,163.23,163.22,58.55044023]
[1754412138313,0.03,163.23,163.22,19.45714038]
[1754412138502,0.03,163.23,163.22,64.75714038]
[1754412138702,0.03,163.23,163.22,52.09670015]
[1754412138910,0.03,163.23,163.22,64.75714038]
[1754412139335,0.03,163.23,163.22,51.42670015]
[1754412139508,0.03,163.23,163.22,45.3]
[1754412139703,0.03,163.23,163.22,51.42670015]
[1754412139946,0.03,163.23,163.22,64.75714038]
[1754412140120,0.03,163.23,163.22,19.45714038]
[1754412140430,0.03,163.23,163.22,64.71714038]
[1754412142331,0.03,163.23,163.22,64.04714038]
[1754412142739,0.03,163.23,163.22,45.26]
[1754412144431,0.03,163.23,163.22,64.71714038]
[1754412144816,0.03,163.23,163.22,168.92335595]
[1754412145855,1e-08,163.26,163.24,0.14216157]
[1754412146050,6.84746289,163.32,163.26,0.14216157]
[1754412146342,6.84746289,163.32,163.31,18.78376397]
[1754412146546,6.84746289,163.32,163.31,64.02376397]
[1754412146755,7.56746289,163.32,163.28,12.66044023]
[1754412146926,20.22790312,163.32,163.29,45.24]
[1754412147121,20.22790312,163.32,163.3,45.24]
[1754412147323,13.38044023,163.31,163.3,45.24]
[1754412147644,13.38044023,163.31,163.25,12.66044023]
[1754412147941,0.72,163.3,163.26,45.24]
[1754412148130,12.66044023,163.28,163.26,45.24]
[1754412148527,19.50484322,163.29,163.26,45.24]
[1754412148728,7.56746289,163.32,163.26,45.24]
[1754412149043,12.66044023,163.29,163.26,45.24]
[1754412149619,12.66044023,163.29,163.26,51.36519696]
[1754412150032,0.72,163.28,163.23,6.12632481]
[1754412150240,12.97056043,163.32,163.23,6.12632481]
[1754412150241,12.97056043,163.32,163.24,45.24]
[1754412150525,0.72,163.31,163.25,13.33044023]
[1754412150735,12.66044023,163.31,163.26,12.66044023]
[1754412151042,12.66044023,163.3,163.27,45.22]
[1754412151238,12.66044023,163.28,163.27,45.22]
[1754412151442,12.66044023,163.28,163.25,45.22]
[1754412151443,13.38044023,163.28,163.25,45.22]
[1754412151629,12.66044023,163.26,163.25,45.22]
[1754412152231,12.66044023,163.26,163.21,0.67]
[1754412152436,12.66044023,163.22,163.17,6.79850283]
[1754412152617,6.84557427,163.25,163.17,6.79850283]
[1754412152618,12.66044023,163.21,163.18,45.22]
[1754412153017,12.66044023,163.19,163.18,45.22]
[1754412153243,12.66044023,163.2,163.18,45.22]
[1754412153451,6.12557427,163.25,163.18,45.87]
[1754412153452,12.66044023,163.22,163.18,45.87]
[1754412153650,12.66044023,163.22,163.19,0.65]
[1754412154352,18.78789121,163.2,163.19,0.06]
[1754412154843,19.50789121,163.2,163.19,0.06]
[1754412155036,13.38044023,163.2,163.19,0.06]
[1754412155232,12.66044023,163.21,163.19,0.06]
[1754412155433,16.03451644,163.25,163.19,0.71]
[1754412155434,12.66044023,163.23,163.19,0.71]
[1754412155634,6.12532479,163.26,163.2,45.22]
[1754412155837,12.66044023,163.28,163.23,12.66044023]
[1754412156134,19.50790312,163.32,163.27,12.66044023]
[1754412156336,12.66044023,163.31,163.28,45.24]
[1754412156853,12.66044023,163.29,163.28,45.24]
[1754412157063,13.38044023,163.29,163.25,45.26]
[1754412157352,12.66044023,163.27,163.25,45.26]
[1754412157525,12.66044023,163.26,163.25,45.26]
[1754412158428,12.66044023,163.27,163.25,45.26]
[1754412158757,18.78530421,163.27,163.25,45.26]
[1754412158926,19.50530421,163.27,163.25,45.26]
[1754412159123,13.38044023,163.26,163.19,6.83773618]
[1754412159374,12.66044023,163.25,163.22,45.24]
[1754412160241,0.72,163.26,163.22,45.24]
[1754412160432,12.66044023,163.25,163.22,45.24]
[1754412160628,12.66044023,163.27,163.23,0.65]
[1754412160827,12.66044023,163.26,163.22,45.24]
[1754412161066,12.66044023,163.27,163.22,57.90044023]
[1754412161235,12.66044023,163.27,163.23,0.65]
[1754412161438,0.03,163.26,163.23,0.65]
[1754412162359,12.69044023,163.26,163.22,45.24]
[1754412162534,12.66044023,163.25,163.22,134.34]
[1754412162732,13.38044023,163.25,163.22,134.34]
[1754412163145,12.66044023,163.24,163.22,134.34]
[1754412164058,6.15540359,163.26,163.22,45.24]
[1754412164289,12.66044023,163.24,163.22,45.24]
[1754412164434,12.66044023,163.23,163.22,45.24]
[1754412164627,18.78676504,163.23,163.22,45.24]
[1754412164838,18.78676504,163.23,163.21,0.06]
[1754412165167,12.66044023,163.22,163.21,0.06]
[1754412165566,0.03,163.26,163.21,0.06]
[1754412165767,0.03,163.26,163.22,13.31044023]
[1754412166000,0.03,163.26,163.23,45.79]
[1754412166370,0.03,163.26,163.24,0.65]
[1754412166696,0.03,163.26,163.24,19.43624146]
[1754412166863,0.03,163.26,163.24,18.78624146]
[1754412167064,0.03,163.26,163.25,0.65]
[1754412167790,0.03,163.26,163.25,13.31044023]
[1754412167991,0.03,163.26,163.25,0.65]
[1754412168194,0.03,163.26,163.22,0.65]
[1754412168367,12.69044023,163.26,163.24,45.12]
[1754412168694,0.03,163.26,163.24,45.77]
[1754412168878,0.03,163.26,163.24,45.12]
[1754412169080,0.03,163.26,163.25,0.65]
[1754412169678,0.03,163.26,163.25,28.4166558]
[1754412170797,0.03,163.26,163.25,34.54223007]
[1754412170995,0.03,163.26,163.24,63.90628151]
[1754412171302,0.03,163.26,163.21,0.71]
[1754412171501,12.66044023,163.25,163.22,45.1]
[1754412171975,0.03,163.26,163.23,13.31044023]
[1754412172303,0.03,163.26,163.24,12.66044023]
[1754412172467,0.03,163.26,163.25,45.12]
[1754412172666,0.03,163.26,163.25,45.77]
[1754412173165,0.03,163.26,163.25,45.12]
[1754412174080,0.03,163.26,163.21,0.06]
[1754412174081,13.41044023,163.26,163.21,0.06]
[1754412174278,12.66044023,163.23,163.22,45.1]
[1754412175013,12.66044023,163.24,163.22,45.1]
[1754412175380,0.03,163.26,163.22,45.1]
[1754412175706,12.66044023,163.25,163.22,51.87660083]
[1754412176081,12.66044023,163.24,163.22,45.1]